fUST/lending_fUST_20240830
["ID","MTS","AMOUNT","RATE_DAILY","PERIOD"]
[336551440,1724951443802,-2246.84,0.00019726,2]
[336551441,1724951443812,-500.0,0.00019726,2]
[336551442,1724951443821,-500.0,0.00019726,2]
[336551443,1724951443831,-244.56,0.00019726,2]
[336551444,1724951443841,-625.77,0.00019726,2]
[336551445,1724951443850,-500.0,0.00019726,2]
[336551446,1724951443860,-321.423094,0.00019726,2]
[336551447,1724951443870,-321.423094,0.00019726,2]
[336551448,1724951443881,-500.0,0.00019726,2]
[336551449,1724951443892,-500.0,0.00019726,2]
[336551450,1724951443902,-647.49,0.00019726,2]
[336551451,1724951443912,-500.0,0.00019726,2]
[336551452,1724951443923,-151.0,0.00019726,2]
[336551454,1724951443933,-830.51,0.00019726,2]
[336551455,1724951443944,-500.0,0.00019726,2]
[336551456,1724951443954,-500.0,0.00019726,2]
[336551457,1724951443963,-500.0,0.00019726,2]
[336551458,1724951443972,-500.0,0.00019726,2]
[336551459,1724951443983,-523.89,0.00019726,2]
[336551460,1724951443993,-15363.1,0.00019726,2]
[336551461,1724951444003,-500.0,0.00019726,2]
[336551462,1724951444014,-2042.94,0.00019726,2]
[336551463,1724951444025,-500.0,0.00019773,2]
[336551464,1724951444037,-4285.19,0.000198,2]
[336551465,1724951444049,-2487.89,0.000198,2]
[336551466,1724951444061,-151.0,0.000198,2]
[336551467,1724951444072,-151.0,0.00019989,2]
[336551468,1724951444083,-492.97,0.00019989,2]
[336551469,1724951444094,-4469.39708995,0.0001999,2]
[336551470,1724951444105,-500.0,0.00019998,2]
[336551471,1724951444116,-500.0,0.00019998,2]
[336551472,1724951444126,-500.0,0.00019999,2]
[336551473,1724951444137,-6136.22,0.00019999,2]
[336551474,1724951444146,-500.0,0.00019999,2]
[336551475,1724951444155,-500.0,0.00019999,2]
[336551476,1724951444164,-721.98,0.00019999,2]
[336551477,1724951444174,-721.98,0.00019999,2]
[336551478,1724951444183,-548.35544021,0.00019999,2]
[336551479,1724951444193,-500.0,0.0002,2]
[336551480,1724951444204,-500.0,0.0002,2]
[336551481,1724951444214,-1301.14,0.0002,2]
[336551482,1724951444223,-500.0,0.0002,2]
[336551483,1724951444232,-779.01,0.0002,2]
[336551484,1724951444242,-303.88,0.0002,2]
[336551485,1724951444251,-151.0,0.0002,2]
[336551486,1724951444261,-500.0,0.0002,2]
[336551487,1724951444272,-500.0,0.0002,2]
[336551488,1724951444282,-403.27,0.0002,2]
[336551489,1724951444293,-500.0,0.0002,2]
[336551490,1724951444303,-500.0,0.0002,2]
[336551491,1724951444314,-821.5,0.0002,2]
[336551492,1724951444325,-1378.7,0.0002,2]
[336551493,1724951444338,-500.0,0.0002,2]
[336551494,1724951444349,-2292.92,0.0002,2]
[336551495,1724951444358,-3668.2,0.0002,2]
[336551496,1724951444368,-500.0,0.0002,2]
[336551497,1724951444377,-883.46,0.0002,2]
[336551498,1724951444388,-1213.09,0.0002,2]
[336551499,1724951444400,-302.30477158,0.0002,2]
[336551500,1724951444409,-851.07,0.0002,2]
[336551501,1724951444418,-500.0,0.0002,2]
[336551502,1724951444428,-1509.49,0.0002,2]
[336551503,1724951444443,-956.48,0.0002,2]
[336551504,1724951444453,-542.66,0.0002,2]
[336551505,1724951444462,-1103.87,0.0002,2]
[336551506,1724951444471,-500.0,0.0002,2]
[336551507,1724951444482,-500.0,0.0002,2]
[336551508,1724951444491,-500.0,0.0002,2]
[336551509,1724951444500,-907.49,0.0002,2]
[336551510,1724951444510,-500.0,0.0002,2]
[336551511,1724951444521,-196.867362,0.0002,2]
[336551512,1724951444531,-660.37,0.0002,2]
[336551513,1724951444541,-500.0,0.0002,2]
[336551514,1724951444550,-500.0,0.0002,2]
[336551515,1724951444559,-2246.84,0.0002,2]
[336551516,1724951444568,-500.0,0.0002,2]
[336551517,1724951444578,-625.77,0.0002,2]
[336551518,1724951444587,-500.0,0.0002,2]
[336551519,1724951444597,-321.423094,0.0002,2]
[336551520,1724951444606,-321.423094,0.0002,2]
[336551521,1724951444616,-302.30477158,0.0002,2]
[336551522,1724951444626,-500.0,0.0002,2]
[336551523,1724951444636,-151.0,0.0002,2]
[336551524,1724951444646,-830.51,0.0002,2]
[336551525,1724951444656,-500.0,0.0002,2]
[336551526,1724951444666,-209.1611223,0.0002,2]
[336551527,1724951444675,-15363.1,0.0002,2]
[336551528,1724951444685,-500.0,0.0002,2]
[336551529,1724951444695,-2042.94,0.0002,2]
[336551530,1724951444706,-4469.39708995,0.00020066,2]
[336551531,1724951444716,-365.70359892,0.00020076,2]
[336551532,1724951444725,-500.0,0.00020076,2]
[336551533,1724951444734,-1900.80809345,0.00020076,2]
[336551534,1724951444746,-312.4407778,0.0002018,2]
[336551535,1724951444756,-302.30477158,0.000202,2]
[336551536,1724951444766,-302.30477158,0.000202,2]
[336551537,1724951444775,-4469.39708995,0.00020263,2]
[336551538,1724951444784,-721.98,0.00020272,2]
[336551539,1724951444796,-500.0,0.00020272,2]
[336551540,1724951444807,-500.0,0.00020273,2]
[336551541,1724951444817,-500.0,0.00020273,2]
[336551542,1724951444827,-1301.14,0.00020273,2]
[336551543,1724951444836,-500.0,0.00020273,2]
[336551544,1724951444848,-779.01,0.00020273,2]
[336551545,1724951444858,-500.0,0.00020273,2]
[336551546,1724951444868,-500.0,0.00020273,2]
[336551547,1724951444880,-500.0,0.00020273,2]
[336551548,1724951444889,-500.0,0.00020273,2]
[336551549,1724951444900,-821.5,0.00020273,2]
[336551550,1724951444910,-1378.7,0.00020273,2]
[336551551,1724951444922,-2292.92,0.00020273,2]
[336551552,1724951444931,-3668.2,0.00020273,2]
[336551553,1724951444941,-6136.22,0.00020273,2]
[336551554,1724951444950,-883.46,0.00020273,2]
[336551555,1724951444959,-1213.09,0.00020273,2]
[336551556,1724951444968,-851.07,0.00020273,2]
[336551557,1724951444978,-645.75157867,0.00020273,2]
[336551558,1724951444988,-500.0,0.00020273,2]
[336551559,1724951444997,-1509.49,0.00020273,2]
[336551560,1724951445006,-500.0,0.00020273,2]
[336551561,1724951445015,-956.48,0.00020273,2]
[336551562,1724951445024,-542.66,0.00020273,2]
[336551563,1724951445033,-151.0,0.00020273,2]
[336551564,1724951445042,-1103.87,0.00020273,2]
[336551565,1724951445051,-500.0,0.00020273,2]
[336551566,1724951445060,-500.0,0.00020273,2]
[336551567,1724951445070,-500.0,0.00020273,2]
[336551568,1724951445079,-907.49,0.00020273,2]
[336551569,1724951445088,-500.0,0.00020273,2]
[336551570,1724951445097,-660.37,0.00020273,2]
[336551571,1724951445106,-500.0,0.00020273,2]
[336551572,1724951445116,-2246.84,0.00020273,2]
[336551573,1724951445125,-500.0,0.00020273,2]
[336551574,1724951445134,-625.77,0.00020273,2]
[336551575,1724951445143,-830.51,0.00020273,2]
[336551576,1724951445152,-500.0,0.00020273,2]
[336551577,1724951445161,-15363.1,0.00020273,2]
[336551578,1724951445171,-500.0,0.00020273,2]
[336551579,1724951445181,-2042.94,0.00020273,2]
[336551580,1724951445190,-1000.0,0.00020321,2]
[336551581,1724951445199,-302.30477158,0.000204,2]
[336551582,1724951445208,-302.30477158,0.000204,2]
[336551583,1724951445217,-4469.39708995,0.00020537,2]
[336551584,1724951445226,-3103.54,0.00020538,3]
[336551585,1724951445235,-1551.76,0.00020538,3]
[336551586,1724951445244,-775.88,0.00020538,3]
[336551587,1724951445253,-387.94,0.00020538,3]
[336551588,1724951445262,-721.98,0.00020546,2]
[336551589,1724951445272,-721.98,0.00020546,2]
[336551590,1724951445282,-500.0,0.00020546,2]
[336551591,1724951445291,-500.0,0.00020547,2]
[336551592,1724951445300,-500.0,0.00020547,2]
[336551593,1724951445310,-1301.14,0.00020547,2]
[336551594,1724951445319,-500.0,0.00020547,2]
[336551595,1724951445328,-779.01,0.00020547,2]
[336551596,1724951445337,-500.0,0.00020547,2]
[336551597,1724951445347,-500.0,0.00020547,2]
[336551598,1724951445356,-500.0,0.00020547,2]
[336551599,1724951445366,-500.0,0.00020547,2]
[336551600,1724951445478,-821.5,0.00020547,2]
[336551601,1724951445490,-1378.7,0.00020547,2]
[336551602,1724951445502,-2292.92,0.00020547,2]
[336551604,1724951445512,-3668.2,0.00020547,2]
[336551605,1724951445521,-6136.22,0.00020547,2]
[336551606,1724951445533,-883.46,0.00020547,2]
[336551607,1724951445543,-1213.09,0.00020547,2]
[336551608,1724951445553,-851.07,0.00020547,2]
[336551609,1724951445563,-468.33858608,0.00020547,2]
[336551610,1724951445573,-1509.49,0.00020547,2]
[336551612,1724951445583,-628.42324222,0.00020547,2]
[336551614,1724951445592,-956.48,0.00020547,2]
[336551616,1724951445602,-542.66,0.00020547,2]
[336551619,1724951445612,-151.0,0.00020547,2]
[336551623,1724951445621,-1103.87,0.00020547,2]
[336551627,1724951445632,-500.0,0.00020547,2]
[336551630,1724951445641,-500.0,0.00020547,2]
[336551632,1724951445651,-500.0,0.00020547,2]
[336551635,1724951445661,-907.49,0.00020547,2]
[336551637,1724951445670,-500.0,0.00020547,2]
[336551639,1724951445680,-660.37,0.00020547,2]
[336551641,1724951445690,-354.03115618,0.00020547,2]
[336551642,1724951445702,-2246.84,0.00020547,2]
[336551643,1724951445713,-500.0,0.00020547,2]
[336551644,1724951445723,-625.77,0.00020547,2]
[336551645,1724951445734,-321.423094,0.00020547,2]
[336551646,1724951445745,-321.423094,0.00020547,2]
[336551647,1724951445754,-246.422411,0.00020547,2]
[336551648,1724951445763,-830.51,0.00020547,2]
[336551649,1724951445773,-500.0,0.00020547,2]
[336551650,1724951445784,-15363.1,0.00020547,2]
[336551651,1724951445794,-500.0,0.00020547,2]
[336551652,1724951445807,-2042.94,0.00020547,2]
[336551653,1724951445818,-150.112233,0.000206,5]
[336551654,1724951445829,-302.30477158,0.000206,2]
[336551655,1724951445838,-302.30477158,0.000206,2]
[336551656,1724951445850,-845.46151213,0.00020634,2]
[336551657,1724951445860,-500.0,0.00020676,2]
[336551658,1724951445870,-1970.85870279,0.00020676,2]
[336551659,1724951445882,-263.483333,0.00020707,2]
[336551660,1724951445892,-302.30477158,0.000208,2]
[336551661,1724951445902,-302.30477158,0.000208,2]
[336551662,1724951445914,-4469.39708995,0.00020811,2]
[336551663,1724951445925,-691.95386981,0.0002082,2]
[336551664,1724951445936,-721.98,0.0002082,2]
[336551665,1724951445947,-500.0,0.0002082,2]
[336551666,1724951445957,-151.0,0.00020821,2]
[336551667,1724951445968,-553.11756495,0.00020821,2]
[336551668,1724951445979,-500.0,0.00020821,2]
[336551669,1724951445989,-1301.14,0.00020821,2]
[336551670,1724951445999,-500.0,0.00020821,2]
[336551671,1724951446010,-779.01,0.00020821,2]
[336551672,1724951446020,-500.0,0.00020821,2]
[336551673,1724951446032,-500.0,0.00020821,2]
[336551674,1724951446042,-500.0,0.00020821,2]
[336551675,1724951446053,-500.0,0.00020821,2]
[336551676,1724951446064,-821.5,0.00020821,2]
[336551677,1724951446076,-1378.7,0.00020821,2]
[336551678,1724951446086,-2292.92,0.00020821,2]
[336551679,1724951446097,-3668.2,0.00020821,2]
[336551680,1724951446109,-6136.22,0.00020821,2]
[336551681,1724951446119,-883.46,0.00020821,2]
[336551682,1724951446130,-1213.09,0.00020821,2]
[336551683,1724951446142,-851.07,0.00020821,2]
[336551684,1724951446152,-1509.49,0.00020821,2]
[336551685,1724951446162,-956.48,0.00020821,2]
[336551686,1724951446172,-542.66,0.00020821,2]
[336551687,1724951446182,-1103.87,0.00020821,2]
[336551688,1724951446192,-500.0,0.00020821,2]
[336551689,1724951446202,-500.0,0.00020821,2]
[336551690,1724951446211,-500.0,0.00020821,2]
[336551691,1724951446221,-907.49,0.00020821,2]
[336551692,1724951446232,-500.0,0.00020821,2]
[336551693,1724951446241,-660.37,0.00020821,2]
[336551694,1724951446251,-2246.84,0.00020821,2]
[336551695,1724951446261,-500.0972049,0.00020821,2]
[336551696,1724951446272,-625.77,0.00020821,2]
[336551697,1724951446283,-830.51,0.00020821,2]
[336551698,1724951446294,-500.0,0.00020821,2]
[336551699,1724951446303,-15363.1,0.00020821,2]
[336551700,1724951446313,-500.0,0.00020821,2]
[336551701,1724951446323,-2042.94,0.00020821,2]
[336551702,1724951446332,-150.112233,0.000209,2]
[336551703,1724951446342,-721.98,0.00020999,2]
[336551704,1724951446354,-150.0,0.00021,30]
[336551705,1724951446364,-1000.0,0.00021,21]
[336551707,1724951446374,-150.0,0.00021,2]
[336551708,1724951446383,-453.45715737,0.00021,4]
[336551710,1724951446395,-453.45715737,0.00021,4]
[336551711,1724951446404,-420.0,0.00021084,2]
[336551712,1724951446417,-321.423094,0.00021085,2]
[336551714,1724951446427,-321.423094,0.00021085,2]
[336551716,1724951446440,-4469.39708995,0.00021085,3]
[336551718,1724951446449,-721.98,0.00021094,2]
[336551719,1724951446458,-721.98,0.00021094,2]
[336551720,1724951446468,-721.98,0.00021094,2]
[336551721,1724951446477,-721.98,0.00021094,2]
[336551722,1724951446488,-722.03,0.00021094,2]
[336551723,1724951446498,-500.0,0.00021094,2]
[336551724,1724951446507,-500.0,0.00021094,2]
[336551725,1724951446519,-431.71153225,0.00021095,2]
[336551726,1724951446528,-1301.14,0.00021095,2]
[336551727,1724951446538,-500.0,0.00021095,2]
[336551728,1724951446547,-779.01,0.00021095,2]
[336551729,1724951446556,-500.0,0.00021095,2]
[336551730,1724951446565,-500.0,0.00021095,2]
[336551731,1724951446575,-500.0,0.00021095,2]
[336551732,1724951446584,-500.0,0.00021095,2]
[336551733,1724951446594,-821.5,0.00021095,2]
[336551734,1724951446604,-1378.7,0.00021095,2]
[336551735,1724951446614,-2292.92,0.00021095,2]
[336551736,1724951446624,-3668.2,0.00021095,2]
[336551737,1724951446634,-6136.22,0.00021095,2]
[336551738,1724951446644,-883.46,0.00021095,2]
[336551739,1724951446655,-1213.09,0.00021095,2]
[336551740,1724951446666,-851.07,0.00021095,2]
[336551741,1724951446678,-1509.49,0.00021095,2]
[336551742,1724951446689,-956.48,0.00021095,2]
[336551743,1724951446699,-542.66,0.00021095,2]
[336551744,1724951446710,-151.0,0.00021095,2]
[336551745,1724951446720,-1103.87,0.00021095,2]
[336551746,1724951446730,-500.0,0.00021095,2]
[336551747,1724951446740,-500.0,0.00021095,2]
[336551748,1724951446750,-500.0,0.00021095,2]
[336551749,1724951446760,-907.49,0.00021095,2]
[336551750,1724951446770,-500.0,0.00021095,2]
[336551751,1724951446780,-660.37,0.00021095,2]
[336551752,1724951446792,-2246.84,0.00021095,2]
[336551753,1724951446801,-625.77,0.00021095,2]
[336551754,1724951446811,-830.51,0.00021095,2]
[336551755,1724951446820,-500.0,0.00021095,2]
[336551756,1724951446830,-15363.1,0.00021095,2]
[336551757,1724951446841,-500.0,0.00021095,2]
[336551758,1724951446853,-2042.94,0.00021095,2]
[336551759,1724951446863,-150.112233,0.000211,5]
[336551760,1724951446872,-150.30224897,0.000211,2]
[336551761,1724951446882,-150.30224897,0.000211,2]
[336551762,1724951446892,-150.30224897,0.000211,2]
[336551763,1724951446904,-150.30224897,0.000211,2]
[336551764,1724951446915,-150.30224897,0.000211,2]
[336551765,1724951446925,-150.30224897,0.000211,2]
[336551766,1724951446935,-150.30224897,0.000211,2]
[336551767,1724951446944,-150.30224897,0.000211,2]
[336551768,1724951446954,-150.30224897,0.000211,2]
[336551769,1724951446963,-150.8,0.000211,2]
[336551770,1724951446973,-4469.39708995,0.0002119,3]
[336551771,1724951446982,-150.112233,0.000212,2]
[336551772,1724951446992,-3068.97,0.000212,2]
[336551773,1724951447002,-453.45715737,0.000212,4]
[336551774,1724951447011,-453.45715737,0.000212,4]
[336551775,1724951447020,-839.2765864,0.00021219,2]
[336551776,1724951447144,-500.0,0.00019178,2]
[336551777,1724951447155,-500.0,0.00019178,2]
[336551778,1724951447164,-500.0,0.00019452,2]
[336551779,1724951447179,-500.0,0.00019726,2]
[336551780,1724951447188,-399.726575,0.0002,2]
[336551781,1724951447327,-500.0,0.00019178,2]
[336551782,1724951447338,-500.0,0.00019178,2]
[336551783,1724951447348,-500.0,0.00019452,2]
[336551784,1724951447357,-500.0,0.00019726,2]
[336551785,1724951447367,-100.273425,0.0002,2]
[336551786,1724951447377,-500.0,0.0002,2]
[336551787,1724951447386,-500.0,0.00020273,2]
[336551788,1724951447396,-500.0,0.00020273,2]
[336551789,1724951447407,-190.11,0.00020547,2]
[336551790,1724951447422,-500.0,0.00020547,2]
[336551791,1724951447431,-327.87,0.00020821,2]
[336551792,1724951447442,-660.7234136,0.00021219,2]
[336551793,1724951447453,-500.14042221,0.00021228,2]
[336551794,1724951447462,-153.0,0.00021315,2]
[336551795,1724951447471,-58.30684754,0.00021315,2]
[336551796,1724951447611,-500.0,0.00019178,2]
[336551797,1724951447621,-116.17,0.00019178,2]
[336551798,1724951447634,-383.83,0.00019178,2]
[336551799,1724951447644,-94.69315246,0.00021315,2]
[336551800,1724951447654,-153.0,0.00021315,2]
[336551801,1724951447664,-4469.39708995,0.00021359,3]
[336551802,1724951447682,-500.66493253,0.00021368,2]
[336551803,1724951447693,-1301.14,0.00021369,2]
[336551804,1724951447703,-500.0,0.00021369,2]
[336551805,1724951447713,-779.01,0.00021369,2]
[336551806,1724951447723,-500.0,0.00021369,2]
[336551807,1724951447732,-500.0,0.00021369,2]
[336551808,1724951447743,-500.0,0.00021369,2]
[336551809,1724951447753,-821.5,0.00021369,2]
[336551810,1724951447762,-2292.92,0.00021369,2]
[336551811,1724951447772,-2678.75232455,0.00021369,2]
[336551812,1724951692084,263.4833682,0.00014247,2]
[336551813,1724951703142,1000.0,0.00015,2]
[336551814,1724952003113,1000.0,0.00015,2]
[336551817,1724952145267,262.97626616,0.00017,2]
[336551819,1724952186932,237.134999,0.00014247,2]
[336551822,1724952429136,-199.9190828,0.00018173,2]
[336551823,1724952429159,-522.41237856,0.00018912,2]
[336551827,1724952524271,15158.45896235,0.00014,2]
[336551830,1724952612893,3044.63757029,0.000175,2]
[336551832,1724952627956,195.28846096,0.00017,2]
[336551833,1724952627981,159.14403946,0.00017,2]
[336551834,1724952628007,4401.28992929,0.00017,2]
[336551875,1724952633260,-479.8067841,0.00018019,2]
[336551876,1724952633271,-345.61540244,0.00018912,2]
[336551877,1724952633281,-861.851062,0.00018912,2]
[336551878,1724952633291,-3539.0207055,0.00018978,2]
[336551894,1724952638324,-611.16,0.00018978,2]
[336551895,1724952638336,-8026.24844484,0.00018978,2]
[336551896,1724952638346,-602.82,0.0001899,3]
[336551897,1724952638356,-301.41,0.0001899,3]
[336551898,1724952638366,-432.86,0.0001899,3]
[336551899,1724952638377,-360.71,0.0001899,3]
[336551900,1724952638387,-216.46,0.0001899,3]
[336551901,1724952638398,-397.98283971,0.00018999,2]
[336551902,1724952638408,-300.0,0.00018999,2]
[336551903,1724952638418,-1000.0,0.00018999,2]
[336551904,1724952638428,-1000.0,0.00018999,2]
[336551905,1724952638438,-1000.0,0.00018999,2]
[336551907,1724952638448,-500.0,0.00018999,2]
[336551908,1724952638459,-385.35518775,0.00018999,2]
[336551909,1724952638471,-500.0,0.00018999,2]
[336551911,1724952638482,-500.0,0.00018999,2]
[336551913,1724952638493,-500.0,0.00018999,2]
[336551915,1724952638504,-366.07029039,0.00018999,2]
[336551917,1724952638515,-500.0,0.00018999,2]
[336551918,1724952638526,-500.0,0.00018999,2]
[336551919,1724952638537,-500.0,0.00018999,2]
[336551920,1724952638548,-124366.11313631,0.00019,2]
[336551921,1724952638558,-1000.0,0.00019077,2]
[336551922,1724952638569,-48928.38094375,0.00019078,2]
[336551923,1724952638580,-868.027781,0.00019148,2]
[336551924,1724952638591,-861.851062,0.00019148,2]
[336551925,1724952638602,-969.85,0.00019168,3]
[336551926,1724952638612,-484.92,0.00019168,3]
[336551927,1724952638624,-242.46,0.00019168,3]
[336551928,1724952638636,-727.43,0.00019168,3]
[336551929,1724952638649,-20427.5706216,0.00019168,2]
[336551930,1724952638658,-1002.57202644,0.00019169,2]
[336551931,1724952638669,-2358.17343556,0.0001917,2]
[336551932,1724952638679,-500.13488323,0.00019173,2]
[336551933,1724952638690,-500.0,0.00019173,2]
[336551934,1724952638700,-300.71827607,0.00019173,2]
[336551935,1724952638710,-167.30848502,0.00019173,2]
[336551936,1724952638721,-450.48479899,0.00019173,2]
[336551937,1724952638731,-501.05672449,0.00019178,2]
[336551938,1724952638742,-607.98009222,0.00019178,2]
[336551939,1724952638752,-500.0,0.00019178,2]
[336551940,1724952638763,-500.0,0.00019178,2]
[336551941,1724952638773,-500.0,0.00019178,2]
[336551942,1724952638784,-500.0,0.00019178,2]
[336551943,1724952638799,-500.0,0.00019178,2]
[336551944,1724952638812,-691.49,0.00019178,2]
[336551945,1724952638825,-500.0,0.00019178,2]
[336551946,1724952638835,-500.0,0.00019178,2]
[336551947,1724952638846,-500.0,0.00019178,2]
[336551948,1724952638858,-500.0,0.00019178,2]
[336551949,1724952639001,-500.0,0.00019178,2]
[336551950,1724952639012,-500.0,0.00019178,2]
[336551951,1724952639022,-500.0,0.00019178,2]
[336551952,1724952639034,-500.0,0.00019178,2]
[336551953,1724952639044,-500.0,0.00019178,2]
[336551954,1724952639055,-501.34026692,0.00019178,2]
[336551955,1724952639065,-500.0,0.00019178,2]
[336551956,1724952639075,-373.86092596,0.00019178,2]
[336551957,1724952639085,-500.0,0.00019178,2]
[336551958,1724952639095,-500.0,0.00019178,2]
[336551959,1724952639105,-500.0,0.00019178,2]
[336551960,1724952639114,-500.0,0.00019178,2]
[336551961,1724952639124,-500.0,0.00019178,2]
[336551962,1724952639135,-500.0,0.00019178,2]
[336551963,1724952639145,-500.0,0.00019178,2]
[336551964,1724952639156,-500.0,0.00019178,2]
[336551965,1724952639167,-500.0,0.00019178,2]
[336551966,1724952639178,-500.0,0.00019178,2]
[336551967,1724952639187,-500.0,0.00019178,2]
[336551968,1724952639199,-500.0,0.00019178,2]
[336551969,1724952639210,-269.42153896,0.00019178,2]
[336551970,1724952639220,-500.0,0.00019178,2]
[336551971,1724952639231,-489.15234295,0.00019178,2]
[336551972,1724952639241,-500.0,0.00019178,2]
[336551973,1724952639253,-500.0,0.00019178,2]
[336551974,1724952639265,-500.0,0.00019178,2]
[336551975,1724952639275,-500.0,0.00019178,2]
[336551976,1724952639285,-500.0,0.00019178,2]
[336551977,1724952639296,-1084.28,0.00019178,2]
[336551978,1724952639307,-500.0,0.00019178,2]
[336551979,1724952639319,-500.0,0.00019178,2]
[336551980,1724952639331,-500.0,0.00019178,2]
[336551981,1724952639343,-500.0,0.00019178,2]
[336551982,1724952639354,-500.0,0.00019178,2]
[336551983,1724952639366,-500.0,0.00019178,2]
[336551984,1724952639376,-500.0,0.00019178,2]
[336551985,1724952639385,-500.0,0.00019178,2]
[336551986,1724952639394,-500.0,0.00019178,2]
[336551987,1724952639405,-618.21217825,0.00019178,2]
[336551988,1724952639414,-501.13742906,0.00019178,2]
[336551989,1724952639425,-279.81274942,0.00019178,2]
[336551990,1724952639435,-500.0,0.00019178,2]
[336551991,1724952639445,-500.0,0.00019178,2]
[336551992,1724952639456,-500.8191015,0.00019178,2]
[336551993,1724952639466,-500.0,0.00019178,2]
[336551994,1724952639476,-500.0,0.00019178,2]
[336551995,1724952639486,-500.0,0.00019178,2]
[336551996,1724952639498,-507.9280735,0.00019178,2]
[336551997,1724952639508,-500.0,0.00019178,2]
[336551998,1724952639517,-500.0,0.00019178,2]
[336551999,1724952639527,-500.0,0.00019178,2]
[336552000,1724952639536,-500.0,0.00019178,2]
[336552001,1724952639545,-500.66822901,0.00019178,2]
[336552002,1724952639555,-500.0,0.00019178,2]
[336552003,1724952639565,-500.0,0.00019178,2]
[336552004,1724952639575,-500.0,0.00019178,2]
[336552005,1724952639585,-500.0,0.00019178,2]
[336552006,1724952639595,-500.0,0.00019178,2]
[336552007,1724952639605,-626.1991081,0.00019178,2]
[336552008,1724952639616,-500.0,0.00019178,2]
[336552009,1724952639626,-500.0,0.00019178,2]
[336552010,1724952639637,-500.0,0.00019178,2]
[336552011,1724952639647,-500.0,0.00019178,2]
[336552012,1724952639657,-497.0,0.00019178,2]
[336552013,1724952639667,-503.04304108,0.00019178,2]
[336552014,1724952639677,-501.55547075,0.00019178,2]
[336552015,1724952639686,-501.22880114,0.00019178,2]
[336552016,1724952639696,-500.0,0.00019178,2]
[336552017,1724952639705,-500.0,0.00019178,2]
[336552018,1724952639715,-500.0,0.00019178,2]
[336552019,1724952639724,-500.0,0.00019178,2]
[336552020,1724952639734,-500.0,0.00019178,2]
[336552021,1724952639743,-500.0,0.00019178,2]
[336552022,1724952639753,-206.64923251,0.00019178,2]
[336552023,1724952639763,-500.0,0.00019178,2]
[336552024,1724952639773,-500.0,0.00019178,2]
[336552025,1724952639782,-500.0,0.00019178,2]
[336552026,1724952639792,-500.0,0.00019178,2]
[336552027,1724952639802,-500.0,0.00019178,2]
[336552028,1724952639814,-500.0,0.00019178,2]
[336552029,1724952639825,-500.0,0.00019178,2]
[336552030,1724952639835,-520.96835983,0.00019178,2]
[336552031,1724952639848,-500.0,0.00019178,2]
[336552032,1724952639858,-500.0,0.00019178,2]
[336552033,1724952639868,-500.0,0.00019178,2]
[336552034,1724952639878,-500.41945364,0.00019178,2]
[336552035,1724952639887,-500.0,0.00019178,2]
[336552036,1724952639898,-501.33338861,0.00019178,2]